bitfinex/quotes_ETHUSD_20251230
["timestamp","ask_amount","ask_price","bid_price","bid_amount"]
[1767119734366,1.29411644,2977.5,2976.4,2.3582]
[1767119735961,6.7172701,2977.4,2976.4,2.3582]
[1767119736148,0.04198434,2977.3,2976.4,2.3582]
[1767119738351,6.71772134,2977.2,2976.4,2.3582]
[1767119738531,6.71772134,2977.2,2976.4,2.3602]
[1767119738736,7.39369177,2977.2,2976.4,2.3602]
[1767119738936,7.39369177,2977.2,2976.4,0.002]
[1767119739665,4.0348311,2977.2,2976.4,0.002]
[1767119740469,7.39369177,2977.2,2976.4,0.002]
[1767119740769,0.04198716,2977.1,2976.4,0.002]
[1767119740968,0.74356789,2977.0,2976.4,0.002]
[1767119741853,3.35919916,2976.9,2976.4,0.002]
[1767119742946,6.71839832,2976.9,2976.4,0.002]
[1767119744876,6.71839832,2976.9,2976.1,0.002]
[1767119744877,5.34234552,2976.8,2976.1,0.002]
[1767119745074,5.34234552,2976.5,2975.6,0.002]
[1767119745772,1.21027338,2976.7,2975.6,0.002]
[1767119746074,0.882,2976.6,2975.6,0.002]
[1767119746773,6.71930118,2976.5,2975.6,0.002]
[1767119746970,1.09608789,2976.4,2975.6,0.002]
[1767119747174,5.34234552,2976.2,2975.6,0.002]
[1767119747376,1.09608789,2976.4,2975.6,0.002]
[1767119748976,6.7197527,2976.3,2975.6,0.002]
[1767119750177,3.35987635,2976.3,2975.6,2.2798]
[1767119750479,3.35953772,2976.6,2975.7,2.2778]
[1767119750698,3.35953772,2976.6,2975.8,2.2778]
[1767119751282,6.7189662,2976.7,2975.8,2.2778]
[1767119753161,3.35945351,2976.7,2975.8,2.2778]
[1767119753364,3.35945351,2976.7,2976.0,2.2778]
[1767119753560,6.7189662,2976.7,2976.0,2.2778]
[1767119754111,6.7189662,2976.7,2975.6,0.002]
[1767119754112,6.7189662,2976.7,2975.8,2.2778]
[1767119754396,6.7189662,2976.7,2975.9,0.882]
[1767119756788,5.34234552,2976.9,2975.9,0.882]
[1767119756963,8.34912175,2976.8,2975.8,0.882]
[1767119757165,8.30713035,2976.8,2975.8,0.882]
[1767119760155,8.30713035,2976.8,2975.9,0.002]
[1767119760984,5.34234552,2976.6,2975.6,0.002]
[1767119761193,0.04199563,2976.5,2975.6,0.002]
[1767119761358,0.53843412,2976.4,2975.6,0.002]
[1767119762356,6.7197527,2976.3,2975.6,0.002]
[1767119763651,3.35987635,2976.3,2975.6,0.002]
[1767119763856,3.35987635,2976.3,2975.6,2.314]
[1767119764505,3.35942486,2976.7,2975.6,2.314]
[1767119764668,6.71888095,2976.7,2975.7,2.5436]
[1767119764985,6.76087376,2976.7,2975.7,3.194]
[1767119765188,6.76087376,2976.7,2975.6,0.002]
[1767119765189,15.46267537,2976.7,2975.6,0.002]
[1767119765381,0.04199422,2976.6,2975.7,0.882]
[1767119765888,15.42068256,2976.7,2975.7,0.882]
[1767119766388,12.06122647,2976.7,2975.7,0.882]
[1767119766588,6.71930118,2976.5,2975.7,0.882]
[1767119766992,3.35965059,2976.5,2975.8,2.312]
[1767119767964,6.71930118,2976.5,2975.8,2.312]
[1767119768157,6.71930118,2976.5,2975.7,0.882]
[1767119768789,0.04199704,2976.4,2975.7,0.882]
[1767119768989,6.71930118,2976.5,2975.7,0.882]
[1767119769190,0.80842745,2976.4,2975.7,0.882]
[1767119769700,0.85042449,2976.4,2975.7,0.882]
[1767119771069,4.21029333,2976.4,2975.7,0.882]
[1767119771274,4.16829629,2976.4,2975.7,0.882]
[1767119771592,7.57016217,2976.4,2975.7,0.882]
[1767119771889,7.52816513,2976.4,2975.7,0.882]
[1767119772694,4.16829629,2976.4,2975.7,0.882]
[1767119776591,7.57016217,2976.4,2975.7,0.882]
[1767119776793,0.75701622,2976.3,2975.6,0.002]
[1767119777170,0.04199986,2976.2,2975.6,0.002]
[1767119777504,0.75701622,2976.3,2975.6,0.002]
[1767119778717,6.71997848,2976.2,2975.6,0.002]
[1767119778898,0.74769947,2976.1,2975.6,0.002]
[1767119782000,3.36021505,2976.0,2975.6,0.002]
[1767119786111,4.10785035,2976.1,2975.6,0.002]
[1767119786408,3.35999134,2976.2,2975.6,2.4232]
[1767119786606,0.001,2976.5,2975.7,2.4212]
[1767119786795,0.001,2976.5,2976.0,2.4212]
[1767119786979,0.001,2976.7,2976.0,2.4212]
[1767119787180,3.36081595,2977.3,2976.3,2.4212]
[1767119787405,0.001,2977.2,2976.5,2.4212]
[1767119787810,0.001,2977.3,2976.5,2.4212]
[1767119788910,0.002,2977.3,2976.5,2.4212]
[1767119792719,0.002,2977.3,2976.7,2.4212]
[1767119795117,0.001,2977.3,2976.9,2.4212]
[1767119795319,0.001,2977.3,2977.1,2.4212]
[1767119806115,0.002,2977.3,2977.0,0.882]
[1767119806413,0.001,2977.3,2977.0,3.1669]
[1767119806609,0.001,2977.3,2977.0,0.882]
[1767119806843,0.001,2977.3,2977.1,2.2849]
[1767119808060,0.001,2977.7,2977.3,2.2849]
[1767119808061,0.001,2977.6,2977.3,2.2849]
[1767119808342,0.001,2977.6,2977.1,0.31669]
[1767119808343,0.001,2977.9,2977.5,7.62656709]
[1767119808512,0.001,2977.9,2977.5,2.2849]
[1767119808710,0.001,2978.1,2977.8,2.2849]
[1767119808920,0.001,2978.2,2977.8,2.2849]
[1767119811411,0.001,2978.2,2978.0,2.2849]
[1767119812039,0.004,2978.4,2978.0,2.2849]
[1767119812540,0.003,2978.3,2978.0,2.2849]
[1767119812943,0.003,2978.3,2977.8,2.2849]
[1767119813127,0.003,2978.3,2977.9,3.1669]
[1767119814019,0.003,2978.3,2978.0,2.2849]
[1767119816742,0.003,2978.3,2977.7,3.1669]
[1767119816958,0.003,2978.3,2977.8,5.34166709]
[1767119817132,0.001,2978.4,2978.1,2.2849]
[1767119818143,0.001,2978.5,2978.1,2.2849]
[1767119819726,3.3582094,2978.7,2978.0,5.34366709]
[1767119819727,0.004,2978.6,2978.3,2.3584]
[1767119820045,3.35468824,2979.1,2978.5,2.3584]
[1767119821450,0.001,2979.5,2978.8,5.34166709]
[1767119821648,0.001,2979.5,2978.8,2.3584]
[1767119823349,3.35608713,2979.7,2979.1,2.3584]
[1767119823553,3.35608713,2979.7,2979.1,3.2404]
[1767119823850,3.70923649,2979.7,2979.1,0.882]
[1767119824042,3.75118702,2979.7,2979.1,0.882]
[1767119824351,3.70921509,2979.7,2979.1,3.2404]
[1767119824540,3.35597341,2979.8,2979.1,3.2404]
[1767119825652,3.35597341,2979.8,2979.2,2.3584]
[1767119825854,6.71118418,2980.1,2979.2,2.3584]
[1767119826954,0.001,2979.7,2979.2,2.3584]
[1767119828147,0.1703403,2980.3,2979.4,2.3584]
[1767119828343,3.35549916,2980.2,2979.8,2.3584]
[1767119828654,1.4764,2980.0,2978.6,2.3584]
[1767119828853,1.4764,2979.8,2979.0,2.3584]
[1767119830252,1.4764,2979.6,2979.0,2.3584]
[1767119832847,6.71095898,2980.2,2979.2,2.3584]
[1767119833036,1.4764,2980.1,2979.4,2.3584]
[1767119833440,1.4764,2980.1,2978.8,2.3584]
[1767119833441,5.34166709,2980.1,2978.8,2.3584]
[1767119833645,1.4764,2979.8,2978.9,2.3584]
[1767119833957,1.4764,2979.8,2979.0,2.3594]
[1767119834164,1.4764,2979.6,2979.0,2.3594]
[1767119835639,1.4764,2979.5,2979.0,2.3594]
[1767119836545,1.4764,2979.5,2978.9,0.881]
[1767119836761,1.4754,2979.4,2978.9,3.341]
[1767119837067,1.4754,2979.4,2978.9,2.46]
[1767119837273,1.4754,2979.4,2978.9,0.881]
[1767119838265,1.4754,2979.4,2978.9,3.341]
[1767119840547,3.35639736,2979.4,2978.9,3.341]
[1767119840774,1.4754,2979.3,2978.9,3.341]
[1767119841065,1.4754,2979.3,2978.9,0.882]
[1767119841660,1.4754,2979.3,2978.9,3.342]
[1767119842974,1.4754,2979.3,2978.9,2.461]
[1767119843156,1.4754,2979.3,2978.9,3.342]
[1767119843683,1.4754,2979.3,2978.9,2.461]
[1767119843888,1.4754,2979.3,2978.9,3.342]
[1767119844972,1.4754,2979.2,2978.3,0.881]
[1767119845278,1.4754,2979.2,2978.5,5.34166709]
[1767119845447,1.4754,2979.2,2978.6,2.46]
[1767119846881,1.4744,2979.1,2978.6,2.46]
[1767119847480,1.4744,2979.0,2978.6,2.46]
[1767119847706,1.4744,2978.8,2978.0,2.462]
[1767119847979,1.4744,2978.6,2977.8,2.46]
[1767119848147,1.4734,2978.4,2977.8,2.46]
[1767119848962,1.4734,2978.3,2977.8,2.46]
[1767119851295,4.83102296,2978.3,2977.8,2.46]
[1767119851584,1.4734,2978.7,2977.8,2.46]
[1767119853884,1.4734,2978.5,2977.8,2.46]
[1767119854075,1.4734,2978.3,2977.8,2.46]
[1767119854886,1.4734,2978.3,2977.8,2.461]
[1767119856307,1.4734,2978.2,2977.8,2.461]
[1767119857802,4.17634544,2978.4,2977.8,2.461]
[1767119858109,1.4734,2978.3,2977.8,2.461]
[1767119859395,0.81879639,2978.4,2977.8,2.461]
[1767119859696,1.4734,2978.3,2977.8,2.461]
[1767119861804,1.4734,2978.2,2977.8,2.461]
[1767119864099,3.3577406,2978.2,2977.6,2.46]
[1767119864284,1.4724,2978.1,2977.7,0.882]
[1767119864485,1.4724,2978.1,2977.7,3.342]
[1767119864802,1.4724,2978.1,2977.8,2.46]
[1767119865299,4.82992262,2978.4,2977.8,2.46]
[1767119865600,5.64864566,2978.4,2977.8,2.46]
[1767119865998,0.81872304,2978.4,2977.8,2.46]
[1767119866201,3.35719141,2978.7,2977.8,2.46]
[1767119866498,1.4724,2978.6,2977.8,2.46]
[1767119867587,1.4724,2978.6,2977.7,3.16]
[1767119868307,1.4724,2978.7,2977.8,2.278]
[1767119868505,2.29105131,2978.6,2977.8,2.278]
[1767119868679,1.4724,2978.6,2977.8,2.278]
[1767119869707,0.001,2978.2,2977.8,2.278]
[1767119870005,1.4724,2978.5,2977.8,2.278]
[1767119870194,4.8298107,2978.5,2977.8,2.278]
[1767119870896,1.4734,2978.4,2977.8,2.278]
[1767119871100,1.4734,2978.3,2977.8,0.882]
[1767119871406,1.4734,2978.3,2977.7,2.278]
[1767119872489,1.4734,2978.2,2977.7,2.278]
[1767119876091,4.83115655,2978.2,2977.7,2.278]
[1767119876301,1.4734,2978.2,2977.7,2.278]
[1767119877492,3.35767097,2978.3,2977.7,2.278]
[1767119877892,4.83107097,2978.3,2977.7,2.278]
[1767119878207,0.001,2978.2,2977.7,2.278]
[1767119881211,1.4744,2979.0,2978.3,2.4743]
[1767119881380,1.4744,2978.9,2978.3,2.45029338]
[1767119881583,1.4744,2978.9,2978.2,0.882]
[1767119881903,5.38025631,2978.8,2977.5,0.002]
[1767119882092,3.02122563,2978.7,2977.6,2.4743]
[1767119882296,3.02122563,2978.7,2977.7,2.4743]
[1767119882791,2.4832,2978.5,2977.7,2.4743]
[1767119885220,3.35750738,2978.4,2977.7,2.4743]
[1767119885520,3.35750738,2978.4,2977.7,3.3563]
[1767119885521,2.4832,2978.3,2977.7,3.3563]
[1767119886116,2.4832,2978.2,2977.7,0.882]
[1767119887385,2.4832,2978.1,2977.6,3.3583]
[1767119888498,0.001,2978.5,2977.7,2.4743]
[1767119888809,2.4832,2978.4,2977.7,2.4743]
[1767119889630,5.84074143,2978.4,2977.7,2.4743]
[1767119889924,2.4832,2978.3,2977.7,2.4743]
[1767119890425,3.06737414,2978.3,2977.6,0.002]
[1767119890602,2.4832,2978.1,2976.9,2.4743]
[1767119890794,2.4832,2978.1,2977.1,2.4743]
[1767119891404,6.71591672,2978.0,2977.1,2.4743]
[1767119891603,2.4832,2977.9,2977.1,2.4743]
[1767119893503,2.4832,2977.8,2977.2,2.4743]
[1767119895323,5.84107475,2978.1,2977.2,2.4743]
[1767119895709,2.4832,2978.1,2977.2,2.4743]
[1767119899709,3.35795836,2978.0,2977.2,2.4743]
[1767119899927,2.3929,2977.9,2977.2,2.4743]
[1767119901639,2.3929,2977.9,2977.3,2.3172]
[1767119901840,0.001,2978.2,2977.3,2.3172]
[1767119902132,2.3939,2978.2,2977.4,2.3172]
[1767119906840,2.3939,2978.2,2977.3,2.3172]
[1767119907144,2.3939,2978.2,2977.4,2.3172]
[1767119907354,2.3929,2978.1,2977.4,2.3172]
[1767119907559,2.3929,2978.1,2977.5,0.882]
[1767119907947,2.3929,2978.1,2977.5,3.1992]
[1767119911255,5.75074872,2978.1,2977.5,3.1992]
[1767119911550,2.3929,2978.0,2977.5,3.1992]
[1767119913238,2.3929,2978.0,2977.5,2.3172]
[1767119915030,2.3929,2977.9,2977.4,0.002]
[1767119916455,2.3929,2977.9,2977.4,2.3192]
[1767119916653,2.3929,2977.9,2977.4,2.63932]
[1767119916954,2.3929,2977.9,2977.4,2.3192]
[1767119917325,2.3929,2977.8,2977.4,2.3192]
[1767119918259,2.3929,2977.9,2977.1,2.3192]
[1767119918553,2.3929,2977.5,2976.8,3.2012]
[1767119918870,2.63219,2977.5,2976.9,2.3172]
[1767119920332,2.3929,2977.5,2976.9,2.3172]
[1767119924846,2.3929,2977.5,2976.9,2.3192]
[1767119929665,3.35856282,2977.5,2976.9,2.3192]
[1767119929851,2.4937,2977.4,2976.9,2.3192]
[1767119932456,2.4937,2977.3,2976.9,0.002]
[1767119932769,2.4937,2977.2,2976.6,0.002]
[1767119934372,2.4937,2977.1,2976.6,0.002]
[1767119934574,2.4937,2977.1,2976.5,0.001]
[1767119936666,3.35903725,2977.1,2976.5,0.001]
[1767119936972,2.4937,2977.0,2976.5,0.001]
[1767119938769,2.4937,2976.9,2976.5,0.001]
[1767119938946,2.4937,2976.9,2976.3,0.002]
[1767119939143,3.3590942,2977.0,2976.2,0.001]
[1767119939144,2.2887,2976.6,2976.2,0.001]
[1767119939379,2.2887,2976.6,2976.0,2.4226]
[1767119939557,2.2887,2976.4,2975.9,0.002]
[1767119940700,2.2887,2976.4,2975.7,0.002]
[1767119940701,2.2887,2976.3,2975.7,0.002]
[1767119941194,2.2887,2976.3,2975.7,2.4226]
[1767119942661,3.35990192,2976.3,2975.7,0.002]
[1767119942863,2.2887,2976.2,2975.7,0.002]
[1767119943056,2.2887,2976.2,2975.7,2.4226]
[1767119946805,2.2887,2976.2,2975.7,0.002]
[1767119946973,2.2887,2976.0,2975.4,0.001]
[1767119948193,2.2887,2976.0,2975.6,0.002]
[1767119948406,2.2887,2975.8,2975.3,0.002]
[1767119948697,2.2887,2975.7,2975.2,0.002]
[1767119949175,2.2887,2975.7,2975.2,2.4226]
[1767119951857,2.2887,2975.9,2975.2,2.4226]
[1767119953105,2.2887,2975.9,2975.2,3.36311263]
[1767119953273,2.2887,2975.9,2975.3,2.4206]
[1767119955090,2.2887,2975.9,2975.3,3.36094396]
[1767119955299,0.883,2976.0,2975.4,2.4206]
[1767119955598,3.1717,2976.0,2975.4,2.4206]
[1767119955769,2.2887,2975.9,2975.4,2.4206]
[1767119957074,2.2887,2975.9,2975.2,2.3106]
[1767119957370,2.2887,2975.9,2975.2,3.36309465]
[1767119957570,2.2887,2975.9,2975.3,2.64510946]
[1767119960106,0.883,2976.0,2975.4,2.3086]
[1767119960298,0.883,2976.0,2975.3,9.03684347]
[1767119960299,0.001,2976.0,2975.6,2.3086]
[1767119962401,2.3215,2976.0,2975.6,2.3086]
[1767119968308,2.3215,2976.0,2975.3,5.67784809]
[1767119968309,2.3215,2976.0,2975.3,2.64710946]
[1767119968618,2.3205,2975.9,2975.3,2.3106]
[1767119970426,2.3205,2975.9,2975.3,0.002]
[1767119971526,2.3205,2975.8,2975.3,0.002]
[1767119979913,2.3205,2975.8,2975.3,2.3106]
[1767119981303,2.3215,2975.8,2975.3,2.3106]
[1767119986418,3.36147942,2975.8,2975.3,0.002]
[1767119986642,2.431,2975.7,2975.3,0.002]
[1767119988319,2.431,2975.7,2975.3,2.3003]
[1767119989338,0.001,2975.8,2975.3,2.3003]
[1767119992147,2.432,2975.8,2975.3,2.3003]
[1767120000951,2.3945,2975.7,2975.2,0.002]
[1767120001339,2.3945,2975.7,2975.2,2.2549]
[1767120001539,2.3945,2975.7,2975.3,0.002]
[1767120002225,2.3945,2975.7,2975.3,2.2549]
[1767120021041,2.3955,2975.7,2975.3,2.2549]
[1767120033581,2.3955,2975.7,2975.2,0.002]
[1767120033772,2.3955,2975.7,2975.3,2.4019]
[1767120034669,2.3204,2975.6,2975.2,0.002]
[1767120034855,2.3204,2975.6,2975.1,0.002]
[1767120035576,0.001,2975.8,2975.4,5.34762461]
[1767120035775,0.001,2975.8,2975.5,2.4019]
[1767120037581,2.3214,2975.8,2975.5,2.4019]
[1767120037989,0.001,2975.7,2975.5,2.4019]
[1767120040370,0.001,2975.8,2975.5,2.4019]
[1767120044794,0.001,2975.8,2975.5,2.4039]
[1767120054203,2.3331,2975.8,2975.5,2.4039]
[1767120063083,2.3331,2975.8,2975.6,0.882]
[1767120063477,0.001,2975.8,2975.6,0.882]
[1767120065812,0.001,2975.8,2975.5,2.4039]
[1767120065977,2.82190184,2975.8,2975.5,0.002]
[1767120066681,2.2598,2975.8,2975.5,0.002]
[1767120067806,2.2598,2975.8,2975.5,2.4296]
[1767120075289,0.001,2975.8,2975.5,2.4296]
[1767120076393,2.2598,2976.0,2975.6,2.3969]
[1767120076594,2.2598,2976.0,2975.7,0.882]
[1767120077918,0.001,2975.8,2975.7,0.882]
[1767120083926,0.001,2975.8,2975.5,0.002]
[1767120086498,2.4925,2975.8,2975.5,0.002]
[1767120093423,2.4925,2975.8,2975.5,2.3989]
[1767120098114,2.4925,2975.8,2975.3,0.002]
[1767120098313,2.4915,2975.6,2975.2,0.882]
[1767120098539,2.4915,2975.6,2975.1,0.002]
[1767120098742,2.4915,2975.6,2975.1,2.3989]
[1767120112347,2.765675,2975.6,2975.1,2.3989]
[1767120113148,2.765675,2975.6,2974.7,3.3616619]
[1767120113149,2.4315,2975.5,2974.6,2.3222]
[1767120113447,2.4315,2975.5,2974.7,2.3222]
[1767120113623,2.4315,2975.5,2974.8,2.3222]
[1767120113827,3.03812728,2975.5,2974.6,2.3222]
[1767120114144,3.03812728,2975.5,2974.5,2.3242]
[1767120114145,2.4315,2975.3,2974.5,2.3242]
[1767120114315,2.4315,2975.3,2974.5,5.68609593]
[1767120114520,2.4315,2975.3,2974.5,3.36389593]
[1767120114747,2.4315,2975.3,2974.6,2.3222]
[1767120114947,2.4315,2975.2,2974.6,2.3222]
[1767120115919,2.4315,2975.2,2975.0,0.002]
[1767120117044,2.4315,2975.2,2974.7,2.3222]
[1767120119153,4.37045641,2976.0,2975.1,5.34656216]
[1767120119340,2.2568,2975.7,2975.2,2.4462]
[1767120120632,2.2568,2975.7,2974.8,0.883]
[1767120120828,2.2568,2975.5,2974.9,2.4462]
[1767120121029,2.2568,2974.9,2974.5,0.002]
[1767120121224,2.2568,2974.8,2974.3,0.002]
[1767120121457,2.2568,2974.8,2974.2,0.002]
[1767120121758,0.76033622,2974.8,2974.3,2.4462]
[1767120121959,2.280803,2974.9,2974.3,2.4462]
[1767120124238,2.280803,2974.9,2974.2,3.36423085]
[1767120124239,2.280803,2974.9,2974.4,2.4462]
[1767120127345,2.280803,2974.9,2974.2,0.002]
[1767120127655,2.280803,2974.9,2974.2,2.4482]
[1767120128931,2.280803,2974.9,2974.3,2.4462]
[1767120130441,2.280803,2974.9,2974.4,2.4462]
[1767120131264,2.60981643,2974.9,2974.4,2.4462]
[1767120133268,2.280803,2974.9,2974.4,2.4462]
[1767120133968,2.280803,2974.9,2974.4,2.3962]
[1767120135065,3e-06,2974.9,2974.5,2.4462]
[1767120135267,3e-06,2974.9,2974.6,2.4462]
[1767120137167,3e-06,2974.9,2974.6,5.80796438]
[1767120137364,3.1388,2975.2,2974.7,2.2569]
[1767120138271,0.001,2974.9,2974.7,2.2569]
[1767120140570,3.1388,2975.2,2974.4,2.2569]
[1767120140952,2.3198,2975.1,2974.4,2.2569]
[1767120142671,2.3198,2975.1,2974.4,5.6189144]
[1767120143371,2.3198,2975.1,2974.4,2.2569]
[1767120144055,2.3198,2975.1,2974.4,5.61890049]
[1767120144256,2.3198,2975.1,2974.4,2.2569]
[1767120144878,2.3198,2975.1,2974.4,5.61891486]
[1767120145879,2.3198,2975.1,2974.4,2.2569]
[1767120146358,2.36181539,2975.1,2974.4,2.2569]
[1767120146559,2.36181539,2975.1,2974.4,2.2589]
[1767120146966,2.36281539,2975.1,2974.4,2.2589]
[1767120148193,2.3208,2975.1,2974.4,2.2589]
[1767120148374,2.3198,2975.0,2974.4,2.2589]
[1767120149274,2.3198,2975.0,2974.4,3.36402235]
[1767120149480,2.3198,2975.0,2974.5,2.2569]
[1767120153285,2.3198,2975.0,2974.4,0.002]
[1767120153454,2.3198,2975.0,2974.4,2.2589]
[1767120154285,2.3618168,2975.0,2974.4,2.2589]
[1767120154888,2.3198,2974.9,2974.4,0.002]
[1767120157084,2.3198,2974.8,2974.2,0.002]
[1767120163487,2.3208,2974.8,2974.2,0.002]
[1767120166175,2.3208,2974.8,2974.2,2.4751]
[1767120167398,2.64136195,2974.8,2974.2,2.4751]
[1767120167571,2.3232,2974.8,2974.2,2.4751]
[1767120168285,0.001,2974.8,2974.3,2.4731]
[1767120169502,0.001,2974.8,2974.4,2.4731]
[1767120171379,2.3232,2974.8,2974.4,2.4731]
[1767120172604,2.3232,2974.8,2974.2,0.002]
[1767120172900,2.55552,2974.8,2974.2,2.4751]
[1767120175288,2.3232,2974.8,2974.2,3.36422484]
[1767120175489,2.3232,2974.8,2974.3,2.4731]
[1767120175677,2.3222,2975.0,2974.3,2.4731]
[1767120176633,2.3222,2974.8,2974.3,2.4731]
[1767120177776,2.3222,2974.8,2974.2,0.002]
[1767120177980,2.3222,2974.6,2974.2,0.002]
[1767120180305,2.3222,2974.6,2973.9,0.002]
[1767120180498,2.4281,2974.4,2973.7,2.451]
[1767120182004,2.4281,2974.4,2973.8,2.451]
[1767120182992,2.4281,2974.4,2973.9,2.451]
[1767120185915,3.00709461,2974.4,2973.9,2.453]
[1767120186707,2.4281,2974.4,2973.9,2.453]
[1767120200126,2.4281,2974.4,2973.9,5.81555969]
[1767120200331,2.4281,2974.4,2974.0,2.3053]
[1767120200704,2.4291,2974.4,2974.0,2.3053]
[1767120208438,0.001,2974.4,2974.0,2.3053]
[1767120212144,2.3155,2974.4,2974.0,2.3053]
[1767120220943,0.45197426,2974.7,2974.0,2.3053]
[1767120221123,2.3155,2975.1,2974.2,2.3053]
[1767120223053,2.3155,2975.1,2974.4,2.3053]
[1767120225656,2.3155,2975.1,2974.4,5.66721537]
[1767120225827,2.3155,2975.1,2974.6,2.3053]
[1767120230860,2.3155,2975.1,2974.2,2.3733]
[1767120231432,2.3155,2975.1,2974.4,2.3733]
[1767120232333,0.001,2975.1,2974.5,2.3733]
[1767120232655,2.4127,2975.1,2974.5,2.3733]
[1767120232957,2.4127,2975.1,2974.7,2.3733]
[1767120239668,0.001,2975.1,2974.7,2.3733]
[1767120240767,2.4425,2975.1,2974.7,2.3733]
[1767120246553,0.001,2975.1,2974.7,2.3733]
[1767120248570,2.4415,2975.2,2974.9,2.3171]
[1767120248739,0.001,2975.6,2975.0,2.54881]
[1767120249139,2.4415,2975.5,2975.0,0.23171]
[1767120249346,2.4415,2975.5,2974.8,2.3171]
[1767120249347,2.4415,2975.3,2974.8,2.3171]
[1767120250570,2.4415,2975.3,2974.8,5.67863357]
[1767120250743,2.4415,2975.3,2974.6,0.77449683]
[1767120250948,2.4415,2975.3,2974.6,0.002]
[1767120251163,2.4415,2975.3,2974.6,2.3191]
[1767120253648,2.4425,2975.3,2974.6,2.3191]
[1767120262079,2.4425,2975.3,2974.6,3.36377551]
[1767120262284,2.4425,2975.3,2974.7,2.3815]
[1767120262869,2.4425,2975.3,2974.7,2.95622755]
[1767120264887,2.4425,2975.3,2974.7,2.3815]
[1767120268791,2.4425,2975.3,2974.7,3.36166769]
[1767120268974,2.4425,2975.3,2974.8,2.3815]
[1767120276494,0.884,2975.6,2974.6,3.36374153]
[1767120276674,2.3461,2975.5,2974.8,2.3815]
[1767120277395,0.001,2975.3,2974.8,2.3815]
[1767120277599,2.3471,2975.3,2974.8,2.95601915]
[1767120283511,0.001,2975.3,2974.8,2.95601915]
[1767120284187,2.3461,2975.5,2974.9,2.3815]
[1767120285408,0.001,2975.3,2974.9,2.3815]
[1767120285912,2.3461,2975.5,2974.8,0.57651915]
[1767120286091,2.3461,2975.5,2974.9,2.3815]
[1767120289914,0.001,2975.7,2975.5,2.4829]
[1767120290116,0.001,2975.8,2975.5,2.41814817]
[1767120290505,2.4831,2975.8,2975.5,2.41814817]
[1767120291711,0.001,2975.8,2975.5,2.41814817]
[1767120292485,2.4831,2976.0,2975.5,2.4829]
[1767120294232,2.4831,2976.0,2975.6,2.4829]
[1767120297300,3.36123199,2976.0,2974.6,0.002]
[1767120297502,3.36123199,2976.0,2974.9,2.4829]
[1767120297503,2.4821,2975.4,2974.9,2.4829]
[1767120299494,2.4821,2975.4,2975.0,2.4781]
[1767120299689,2.4821,2975.4,2975.1,3.06205524]
[1767120300628,3.36045804,2975.8,2975.1,3.06205524]
[1767120300927,2.2955,2975.7,2975.1,2.4781]
[1767120304327,2.2955,2975.6,2975.1,2.4781]
[1767120329152,2.326,2975.3,2974.8,0.002]
[1767120329355,2.326,2975.3,2974.6,0.002]
[1767120329356,2.326,2975.3,2974.6,2.2642]
[1767120329553,2.326,2975.2,2974.6,2.2642]
[1767120329852,2.326,2975.1,2974.6,0.002]
[1767120330054,2.326,2975.1,2974.5,0.002]
[1767120330361,2.326,2975.1,2974.5,2.2642]
[1767120330731,2.326,2975.7,2974.7,2.2622]
[1767120330956,3.208,2975.6,2974.9,2.2622]
[1767120331157,2.326,2975.5,2974.9,2.2622]
[1767120332256,2.326,2975.4,2974.9,2.2622]
[1767120332472,2.5586,2975.4,2974.9,2.2622]
[1767120335257,2.326,2975.3,2974.6,2.2622]
[1767120338668,2.326,2975.3,2974.9,0.002]
[1767120340643,2.326,2975.1,2974.6,2.2622]
[1767120340844,2.326,2975.1,2974.5,0.002]
[1767120341370,2.326,2975.0,2974.5,0.002]
[1767120341869,1.14556205,2975.1,2974.3,0.002]
[1767120341870,2.326,2974.7,2974.3,0.002]
[1767120342037,2.326,2974.7,2973.9,3.36451823]
[1767120342237,2.326,2974.7,2974.0,2.2622]
[1767120347170,2.326,2974.7,2974.0,2.2642]
[1767120347465,2.326,2974.7,2974.1,2.4476]
[1767120355269,4.46481161,2975.1,2974.1,2.4476]
[1767120355270,3.36139989,2975.0,2974.1,2.4476]
[1767120355471,2.3979,2974.9,2974.1,2.4476]
[1767120355673,2.3979,2974.8,2974.0,0.002]
[1767120355867,2.3979,2974.8,2974.0,2.4496]
[1767120356069,0.001,2974.7,2974.0,2.4496]
[1767120356270,2.3979,2974.6,2974.0,2.4496]
[1767120365053,2.4524,2974.5,2974.0,0.002]
[1767120365253,3.03392134,2974.5,2974.0,0.002]
[1767120367857,3.03392134,2974.5,2974.0,2.4101]
[1767120368183,2.4524,2974.5,2974.0,2.4101]
[1767120375995,2.4524,2974.5,2973.9,0.002]
[1767120376200,2.4098,2974.3,2973.7,0.002]
[1767120377507,2.4098,2974.3,2973.7,2.3688]
[1767120377705,2.4098,2974.3,2973.7,2.94236935]
[1767120380298,2.4098,2974.3,2973.7,2.3688]
[1767120383497,2.4098,2974.3,2973.7,0.002]
[1767120383805,2.4098,2974.3,2973.7,2.3688]
[1767120384003,2.4098,2974.3,2973.7,0.002]
[1767120384403,2.4518281,2974.2,2973.4,2.3688]
[1767120384717,2.4518281,2974.2,2973.1,0.002]